fUSD/lending_fUSD_20251217
["ID","MTS","AMOUNT","RATE_DAILY","PERIOD"]
[398869316,1765941042257,-829.06261026,0.00017554,2]
[398869317,1765941042266,-2000.0,0.00017554,2]
[398869318,1765941042276,-2000.0,0.00017554,2]
[398869319,1765941042286,-201.93286099,0.00017554,2]
[398869320,1765941042295,-151.21795109,0.00017554,2]
[398869321,1765941042306,-620.0,0.00017554,2]
[398869322,1765941042315,-200.0,0.00017554,2]
[398869323,1765941042325,-207.4,0.00017554,2]
[398869324,1765941042335,-215.0738,0.00017554,2]
[398869325,1765941042344,-223.0315306,0.00017554,2]
[398869327,1765941042354,-231.28369723,0.00017554,2]
[398869328,1765941042368,-265.12270283,0.00017554,2]
[398869329,1765941042378,-500.0,0.00017554,2]
[398869331,1765941042388,-500.0,0.00017554,2]
[398869333,1765941042398,-534.78423852,0.00017554,2]
[398869335,1765941042407,-1234.0,0.00017554,2]
[398869337,1765941042417,-367.2873723,0.00017554,2]
[398869339,1765941042427,-150.0,0.00017562,2]
[398869340,1765941042437,-862.46524811,0.00017608,2]
[398869341,1765941042447,-482.11411572,0.00017635,2]
[398869342,1765941042457,-150.0,0.00017702,2]
[398869343,1765941042467,-211.648,0.00017702,2]
[398869344,1765941042477,-214.963,0.00017702,2]
[398869345,1765941042486,-194.105,0.00017702,2]
[398869346,1765941042499,-155.509,0.00017702,2]
[398869347,1765941042509,-193.419,0.00017702,2]
[398869348,1765941042518,-190.175,0.00017702,2]
[398869349,1765941042528,-250.0,0.00017702,2]
[398869350,1765941042538,-276.632,0.00017702,2]
[398869351,1765941042553,-211.286,0.00017702,2]
[398869352,1765941042562,-164.0,0.00017702,2]
[398869353,1765941042571,-224.555,0.00017702,2]
[398869354,1765941042589,-1607.0,0.00017702,2]
[398869355,1765941042601,-3453.0,0.00017702,2]
[398869356,1765941042610,-1325.0,0.00017702,2]
[398869357,1765941042619,-150.0,0.00017721,2]
[398869358,1765941042628,-150.0,0.00017721,2]
[398869359,1765941042637,-13736.93954689,0.00017733,2]
[398869360,1765941042647,-17549.58715018,0.000178,2]
[398869361,1765941042656,-933.85,0.00017808,5]
[398869362,1765941042666,-1500.0,0.00017812,2]
[398869363,1765941042675,-1128.93877006,0.00017812,2]
[398869364,1765941042684,-1002.1315586,0.00017951,2]
[398869365,1765941042694,-482.11411572,0.00017952,2]
[398869366,1765941042704,-244.711737,0.00018,2]
[398869367,1765941042715,-500.0,0.00018036,2]
[398869368,1765941042730,-150.0,0.00018037,2]
[398869369,1765941042741,-150.0,0.00018037,2]
[398869370,1765941042751,-150.0,0.00018037,2]
[398869371,1765941042761,-150.0,0.00018037,2]
[398869372,1765941042772,-933.85,0.00018082,6]
[398869373,1765941042782,-600.0,0.00018082,2]
[398869411,1765941043175,-574.12855637,0.00018102,2]
[398869413,1765941043185,-209.78387836,0.00018102,2]
[398869415,1765941043194,-1234.0,0.00018102,2]
[398869417,1765941043205,-13736.93954689,0.00018122,2]
[398869419,1765941043215,-17549.58715018,0.00018167,2]
[398869421,1765941043224,-482.11411572,0.00018268,2]
[398869423,1765941043234,-19728.095894,0.00018277,2]
[398869425,1765941043243,-291.0,0.00018278,2]
[398869427,1765941043254,-215.22395714,0.00018281,2]
[398869429,1765941043263,-291.0,0.00018333,2]
[398869431,1765941043272,-150.0,0.00018353,2]
[398869433,1765941043281,-150.0,0.00018353,2]
[398869435,1765941043290,-933.85,0.00018356,7]
[398869437,1765941043299,-47629.81,0.00018356,2]
[398869439,1765941043308,-13736.93954689,0.00018511,2]
[398869441,1765941043317,-150.0,0.00018512,2]
[398869443,1765941043327,-17549.58715018,0.00018533,2]
[398869445,1765941043336,-200.41,0.00018538,2]
[398869447,1765941043346,-364.873,0.00018564,2]
[398869450,1765941043356,-291.0,0.00018582,2]
[398869452,1765941043365,-482.11411572,0.00018584,2]
[398869454,1765941043375,-2000.0,0.000186,2]
[398869456,1765941043384,-3635.96690646,0.0001862,2]
[398869458,1765941043394,-500.0,0.0001863,2]
[398869460,1765941043403,-150.0,0.0001863,2]
[398869462,1765941043412,-150.0,0.0001863,2]
[398869464,1765941043421,-150.0,0.0001863,2]
[398869466,1765941043430,-152.33058211,0.0001863,2]
[398869468,1765941043440,-500.0,0.0001863,2]
[398869470,1765941043448,-500.0,0.0001863,2]
[398869472,1765941043458,-150.81116923,0.0001863,2]
[398869474,1765941043468,-500.0,0.0001863,2]
[398869476,1765941043477,-500.0,0.0001863,2]
[398869478,1765941043486,-150.52720493,0.0001863,2]
[398869480,1765941043499,-500.0,0.0001863,2]
[398869482,1765941043508,-933.85,0.0001863,8]
[398869484,1765941043517,-150.0,0.0001863,2]
[398869486,1765941043526,-150.0,0.0001863,2]
[398869488,1765941043536,-1725.0,0.0001863,2]
[398869490,1765941043545,-150.0,0.0001863,2]
[398869492,1765941043555,-150.0,0.0001863,2]
[398869494,1765941043564,-500.0,0.0001863,2]
[398869496,1765941043575,-150.0,0.0001863,2]
[398869499,1765941043592,-500.0,0.0001863,2]
[398869501,1765941043605,-500.0,0.0001863,2]
[398869503,1765941043616,-150.0,0.0001863,2]
[398869505,1765941043625,-180.48344758,0.0001863,2]
[398869507,1765941043637,-500.0,0.0001863,2]
[398869509,1765941043646,-150.0,0.0001863,2]
[398869511,1765941043656,-150.0,0.0001863,2]
[398869514,1765941043665,-500.0,0.0001863,2]
[398869516,1765941043675,-150.0,0.0001863,2]
[398869518,1765941043685,-150.0,0.0001863,2]
[398869520,1765941043695,-262.88885759,0.0001863,2]
[398869522,1765941043704,-600.0,0.0001863,2]
[398869524,1765941043715,-595.37131296,0.0001865,2]
[398869526,1765941043726,-1234.0,0.0001865,2]
[398869528,1765941043737,-1053.411224,0.00018667,2]
[398869530,1765941043747,-500.0,0.00018671,2]
[398869532,1765941043757,-500.0,0.00018671,2]
[398869534,1765941043766,-250.36587945,0.00018727,2]
[398869537,1765941043776,-291.0,0.00018766,2]
[398869539,1765941043786,-500.0,0.00018767,2]
[398869541,1765941043795,-150.0,0.00018767,2]
[398869543,1765941043804,-150.0,0.00018767,2]
[398869545,1765941043814,-252.30452045,0.00018767,2]
[398869547,1765941043823,-500.0,0.00018767,2]
[398869549,1765941043833,-500.0,0.00018767,2]
[398869551,1765941043842,-500.0,0.00018767,2]
[398869553,1765941043852,-500.0,0.00018767,2]
[398869555,1765941043861,-500.0,0.00018767,2]
[398869557,1765941043871,-150.0,0.00018767,2]
[398869559,1765941043880,-1725.0,0.00018767,2]
[398869561,1765941043890,-200.0,0.00018767,2]
[398869563,1765941043899,-150.0,0.00018767,2]
[398869565,1765941043909,-150.0,0.00018767,2]
[398869567,1765941043920,-500.0,0.00018767,2]
[398869569,1765941043931,-150.0,0.00018767,2]
[398869571,1765941043940,-500.0,0.00018767,2]
[398869573,1765941043950,-552.35225987,0.00018767,2]
[398869575,1765941043959,-500.0,0.00018767,2]
[398869576,1765941043969,-150.0,0.00018767,2]
[398869577,1765941043979,-150.0,0.00018767,2]
[398869578,1765941043989,-500.0,0.00018767,2]
[398869579,1765941043999,-214.31343054,0.00018873,2]
[398869580,1765941044010,-195.3184449,0.00018886,2]
[398869581,1765941044020,-195.3184449,0.00018893,2]
[398869582,1765941044029,-400.37819361,0.00018899,2]
[398869583,1765941044040,-248.3672316,0.000189,3]
[398869584,1765941044051,-10000.0,0.000189,2]
[398869585,1765941044062,-295.90344367,0.000189,2]
[398869586,1765941044072,-500.0,0.000189,2]
[398869587,1765941044082,-500.0,0.000189,2]
[398869588,1765941044091,-500.0,0.000189,2]
[398869589,1765941044100,-500.0,0.000189,2]
[398869590,1765941044110,-500.0,0.000189,2]
[398869591,1765941044119,-500.0,0.000189,2]
[398869592,1765941044135,-500.0,0.000189,2]
[398869593,1765941044144,-500.0,0.000189,2]
[398869594,1765941044155,-500.0,0.000189,2]
[398869595,1765941044166,-500.0,0.000189,2]
[398869596,1765941044175,-500.0,0.000189,2]
[398869597,1765941044186,-500.0,0.000189,2]
[398869598,1765941044195,-500.0,0.000189,2]
[398869599,1765941044206,-500.0,0.000189,2]
[398869600,1765941044217,-500.0,0.000189,2]
[398869601,1765941044228,-500.0,0.000189,2]
[398869602,1765941044238,-500.0,0.000189,2]
[398869603,1765941044248,-500.0,0.000189,2]
[398869604,1765941044259,-500.0,0.000189,2]
[398869605,1765941044268,-206.23820043,0.000189,2]
[398869606,1765941044279,-482.11411572,0.000189,2]
[398869607,1765941044290,-17549.58715018,0.000189,2]
[398869608,1765941044299,-156.26056198,0.000189,2]
[398869609,1765941044309,-156.26056198,0.000189,2]
[398869610,1765941044319,-156.26056198,0.000189,2]
[398869611,1765941044329,-156.26056198,0.000189,2]
[398869612,1765941044339,-156.26056198,0.000189,2]
[398869613,1765941044350,-156.26056198,0.000189,2]
[398869614,1765941044359,-156.26056198,0.000189,2]
[398869615,1765941044370,-156.26056198,0.000189,2]
[398869616,1765941044380,-156.26056198,0.000189,2]
[398869617,1765941044389,-156.26056198,0.000189,2]
[398869618,1765941044399,-156.26056198,0.000189,2]
[398869619,1765941044409,-156.26056198,0.000189,2]
[398869620,1765941044419,-156.26056198,0.000189,2]
[398869621,1765941044429,-156.26056198,0.000189,2]
[398869622,1765941044441,-156.26056198,0.000189,2]
[398869623,1765941044450,-156.26056198,0.000189,2]
[398869624,1765941044460,-156.26056198,0.000189,2]
[398869625,1765941044470,-156.26,0.000189,2]
[398869626,1765941044482,-328.14718016,0.000189,2]
[398869627,1765941044492,-328.14718016,0.000189,2]
[398869628,1765941044508,-328.14718016,0.000189,2]
[398869629,1765941044518,-328.14718016,0.000189,2]
[398869630,1765941044528,-328.14718016,0.000189,2]
[398869631,1765941044538,-328.14718016,0.000189,2]
[398869632,1765941044548,-328.14718016,0.000189,2]
[398869633,1765941044558,-328.14718016,0.000189,2]
[398869634,1765941044568,-328.14718016,0.000189,2]
[398869635,1765941044578,-328.14718016,0.000189,2]
[398869636,1765941044588,-328.14718016,0.000189,2]
[398869637,1765941044598,-328.14718016,0.000189,2]
[398869638,1765941044608,-195.3184449,0.000189,2]
[398869639,1765941044619,-328.14718016,0.000189,2]
[398869640,1765941044629,-328.14718016,0.000189,2]
[398869641,1765941044640,-328.14718016,0.000189,2]
[398869642,1765941044656,-328.14718016,0.000189,2]
[398869643,1765941044667,-328.14718016,0.000189,2]
[398869644,1765941044677,-328.14718016,0.000189,2]
[398869645,1765941044687,-328.14718016,0.000189,2]
[398869646,1765941044698,-328.14,0.000189,2]
[398869647,1765941044708,-191.94653337,0.000189,2]
[398869648,1765941044718,-191.94653337,0.000189,2]
[398869649,1765941044728,-191.94,0.000189,2]
[398869650,1765941044739,-167.9532167,0.000189,2]
[398869651,1765941044750,-167.9532167,0.000189,2]
[398869652,1765941044760,-167.9532167,0.000189,2]
[398869653,1765941044771,-167.9532167,0.000189,2]
[398869654,1765941044781,-167.9532167,0.000189,2]
[398869655,1765941044791,-167.9532167,0.000189,2]
[398869656,1765941044801,-167.9532167,0.000189,2]
[398869657,1765941044812,-167.95,0.000189,2]
[398869658,1765941044823,-1380.40452201,0.000189,2]
[398869659,1765941044835,-161.11564941,0.000189,2]
[398869660,1765941044845,-161.11564941,0.000189,2]
[398869661,1765941044855,-161.11564941,0.000189,2]
[398869662,1765941044865,-161.11564941,0.000189,2]
[398869663,1765941044878,-161.11564941,0.000189,2]
[398869664,1765941044888,-161.11564941,0.000189,2]
[398869665,1765941044899,-161.11,0.000189,2]
[398869666,1765941044908,-154.79738865,0.000189,2]
[398869667,1765941044919,-154.79738865,0.000189,2]
[398869668,1765941044929,-154.79738865,0.000189,2]
[398869669,1765941044939,-154.79738865,0.000189,2]
[398869670,1765941044950,-154.79738865,0.000189,2]
[398869671,1765941044960,-154.79738865,0.000189,2]
[398869672,1765941044971,-154.79738865,0.000189,2]
[398869673,1765941044981,-154.79738865,0.000189,2]
[398869674,1765941044991,-154.79738865,0.000189,2]
[398869675,1765941045001,-154.79738865,0.000189,2]
[398869676,1765941045011,-154.79738865,0.000189,2]
[398869677,1765941045021,-154.79738865,0.000189,2]
[398869678,1765941045031,-154.79738865,0.000189,2]
[398869679,1765941045041,-154.79738865,0.000189,2]
[398869680,1765941045050,-154.79738865,0.000189,2]
[398869681,1765941045060,-154.79738865,0.000189,2]
[398869682,1765941045070,-154.79,0.000189,2]
[398869683,1765941045080,-658.91428744,0.000189,2]
[398869684,1765941045091,-13736.93954689,0.000189,2]
[398869685,1765941045101,-216.82588269,0.00018903,7]
[398869686,1765941045111,-150.0,0.00018904,2]
[398869687,1765941045121,-500.0,0.00018904,2]
[398869688,1765941045131,-150.0,0.00018904,2]
[398869689,1765941045141,-500.0,0.00018904,2]
[398869690,1765941045151,-500.0,0.00018904,2]
[398869691,1765941045161,-245.36432419,0.00018904,2]
[398869692,1765941045171,-500.0,0.00018904,2]
[398869693,1765941045181,-500.0,0.00018904,2]
[398869694,1765941045191,-150.0,0.00018904,2]
[398869695,1765941045201,-1725.0,0.00018904,2]
[398869696,1765941045211,-200.0,0.00018904,2]
[398869697,1765941045220,-150.0,0.00018904,2]
[398869698,1765941045230,-500.0,0.00018904,2]
[398869699,1765941045240,-150.0,0.00018904,2]
[398869700,1765941045250,-347.0,0.00018904,2]
[398869701,1765941045263,-500.0,0.00018904,2]
[398869702,1765941045273,-150.0,0.00018904,2]
[398869703,1765941045283,-150.0,0.00018904,2]
[398869704,1765941045292,-500.0,0.00018904,2]
[398869705,1765941045302,-933.85,0.00018904,9]
[398869706,1765941045312,-4000.0,0.00018904,2]
[398869707,1765941045322,-311.1,0.00018923,2]
[398869708,1765941045332,-642.94,0.00018923,2]
[398869709,1765941045342,-1000.0,0.0001897,2]
[398869710,1765941045352,-571.91267017,0.0001897,2]
[398869711,1765941045362,-1000.0,0.0001897,2]
[398869712,1765941045373,-500.0,0.0001897,2]
[398869713,1765941045384,-500.0,0.00018971,2]
[398869714,1765941045395,-115514.6431436,0.00018972,2]
[398869715,1765941045405,-1796.1625179,0.00018972,2]
[398869716,1765941045415,-151.0,0.00018975,2]
[398869717,1765941045425,-509.25948189,0.00018977,2]
[398869718,1765941045435,-500.0,0.00018977,2]
[398869719,1765941045446,-15442.0695384,0.00018978,2]
[398869720,1765941045457,-731.4302444,0.00018978,2]
[398869721,1765941045467,-2643.3313627,0.00018978,2]
[398869722,1765941045478,-1565.1463979,0.00018978,2]
[398869723,1765941045488,-370906.3252497,0.00018978,2]
[398869724,1765941045498,-151.0,0.00018978,2]
[398869725,1765941045512,-150.00000001,0.00018986,2]
[398869726,1765941045522,-150.0,0.00018986,2]
[398869727,1765941045532,-150.0,0.00018986,2]
[398869728,1765941045543,-150.0,0.00018986,2]
[398869729,1765941045553,-150.0,0.00018986,2]
[398869730,1765941045563,-150.0,0.00018986,2]
[398869731,1765941045572,-162.29429052,0.00018986,2]
[398869732,1765941045582,-366.83373706,0.0001899,2]
[398869735,1765941045757,-366.83373706,0.0001899,2]
[398869737,1765941045767,-3292.0,0.00018996,2]
[398869738,1765941045776,-151.0,0.00018997,2]
[398869739,1765941045785,-500.0,0.00018998,2]
[398869740,1765941045794,-500.0,0.00018998,2]
[398869741,1765941045802,-500.0,0.00018999,2]
[398869742,1765941045811,-516.45445858,0.00018999,2]
[398869743,1765941045820,-500.0,0.00018999,2]
[398869744,1765941045829,-179.37746976,0.00018999,2]
[398869745,1765941045838,-500.0,0.00018999,2]
[398869746,1765941045848,-500.0,0.00018999,2]
[398869747,1765941045857,-500.0,0.00018999,2]
[398869748,1765941045866,-500.0,0.00018999,2]
[398869749,1765941045875,-500.0,0.00018999,2]
[398869750,1765941045885,-500.0,0.00018999,2]
[398869751,1765941045894,-500.0,0.00018999,2]
[398869752,1765941045903,-500.0,0.00018999,2]
[398869753,1765941045912,-500.0,0.00018999,2]
[398869754,1765941045921,-500.0,0.00018999,2]
[398869755,1765941045931,-500.0,0.00018999,2]
[398869756,1765941045940,-366.93006566,0.00018999,2]
[398869757,1765941045949,-1469083.78962324,0.00019,2]
[398869758,1765941045971,-419.12847376,0.00019,2]
[398869759,1765941047226,-459.875,0.0001562,2]
[398869760,1765941047237,-375.125,0.0001562,2]
[398869761,1765941047246,-182.83960921,0.00019,2]
[398869762,1765941047262,-1111.48013228,0.00019,2]
[398869763,1765941047334,-495.68719811,0.00019,2]
[398869764,1765941047412,-877.70217137,0.00019,2]
[398869765,1765941047589,-416.15809651,0.00019,2]
[398869766,1765941049889,-482.92950368,0.00015651,2]
[398869767,1765941049944,-171.07049632,0.00015651,2]
[398869768,1765941049954,-1665.0,0.00015683,2]
[398869769,1765941049963,-891.82456365,0.00015714,2]
[398869770,1765941049975,-505.17543635,0.00015714,2]
[398869771,1765941049986,-6524.0,0.00017229,2]
[398869772,1765941049996,-236.03961526,0.000189,3]
[398869773,1765941050006,-854.46925692,0.00019,2]
[398869774,1765941050022,-2170.09,0.00019,2]
[398869775,1765941050094,-45335.15979292,0.00019,2]
[398869776,1765941050106,-258.0167239,0.00019,2]
[398869777,1765941050116,-521.7277719,0.00019,2]
[398869778,1765941050147,-729.04810207,0.00019,2]
[398869779,1765941050158,-1874.49928913,0.00019,2]
[398869780,1765941052392,-850.305,0.00019,2]
[398869781,1765941052425,-1031.79579359,0.00019,2]
[398869782,1765941052437,-1155.39425,0.00019,2]
[398869783,1765941052449,-1556.54727354,0.00019,2]
[398869784,1765941052461,-619.59135763,0.00019,2]
[398869785,1765941052492,-698.04071887,0.00019,2]
[398869786,1765941052628,-14624.72711395,0.00019,2]
[398869787,1765941082231,163.0,0.00023,120]
[398869803,1765941787250,57192.24382037,0.00015,3]
[398869894,1765942233403,-800.87,0.00013699,2]
[398869895,1765942233413,-102.76050001,0.00013699,2]
[398869896,1765942233428,-63.89949999,0.00013699,2]
[398869897,1765942233437,-201.10050013,0.00013699,2]
[398869898,1765942233448,-61.89949987,0.00013699,2]
[398869899,1765942233457,-250.0,0.00013936,2]
[398869900,1765942233467,-166.66,0.00013938,2]
[398869901,1765942233476,-166.66,0.00014178,2]
[398869902,1765942233485,-52.17199013,0.00014272,2]
[398869903,1765942233497,-717.38573744,0.00014272,2]
[398869904,1765942233508,-300.03857324,0.00014272,2]
[398869905,1765942233646,-130.40369919,0.00014272,2]
[398869906,1765942233656,-1200.0,0.00014272,2]
[398869907,1765942233665,-300.0,0.00014272,2]
[398869908,1765942233675,-500.85320558,0.00014273,2]
[398869909,1765942233684,-501.60658461,0.00014273,2]
[398869910,1765942233694,-500.0,0.00014273,2]
[398869911,1765942233703,-500.0,0.00014273,2]
[398869912,1765942233712,-594.80540333,0.00014273,2]
[398869913,1765942233721,-500.0,0.00014273,2]
[398869914,1765942233731,-500.77768934,0.00014273,2]
[398869915,1765942233740,-501.40911731,0.00014273,2]
[398869916,1765942233749,-500.0,0.00014273,2]
[398869917,1765942233759,-500.0,0.00014273,2]
[398869918,1765942233768,-500.47389711,0.00014273,2]
[398869919,1765942233777,-501.44037787,0.00014273,2]
[398869920,1765942233787,-501.11096091,0.00014273,2]
[398869921,1765942233796,-172.7215259,0.00014273,2]
[398869922,1765942233806,-500.66368365,0.00014273,2]
[398869923,1765942233816,-500.0,0.00014273,2]
[398869924,1765942233825,-500.79172108,0.00014273,2]
[398869925,1765942233834,-501.3431707,0.00014273,2]
[398869926,1765942233844,-500.0,0.00014273,2]
[398869927,1765942233853,-500.0,0.00014273,2]
[398869928,1765942233862,-341.41992772,0.00014273,2]
[398869929,1765942233872,-500.82544955,0.00014273,2]
[398869930,1765942233882,-500.79410579,0.00014273,2]
[398869931,1765942233891,-500.0,0.00014273,2]
[398869932,1765942233900,-500.71124086,0.00014273,2]
[398869933,1765942233909,-5645.17,0.00014393,2]
[398869934,1765942233923,-166.66,0.00014418,2]
[398869935,1765942233933,-163.60697468,0.00014508,2]
[398869936,1765942233942,-221.09509542,0.00014508,2]
[398869937,1765942233951,-282.33,0.00014541,2]
[398869938,1765942233960,-1194.94,0.00014577,2]
[398869939,1765942233970,-166.66,0.00014658,2]
[398869940,1765942233979,-502.0,0.00014811,2]
[398869941,1765942233989,-262.0,0.00014811,2]
[398869942,1765942233999,-1000.0,0.00014821,2]
[398869943,1765942234009,-500.0,0.00014821,2]
[398869944,1765942234019,-1000.0,0.00014821,2]
[398869945,1765942234029,-1004.18560618,0.00014826,2]
[398869946,1765942234038,-1010.0,0.0001484,2]
[398869947,1765942234048,-1000.0,0.00014853,2]
[398869948,1765942234059,-281.0,0.0001487,2]
[398869949,1765942234072,-166.66,0.00014897,2]
[398869950,1765942234081,-293.0,0.00014928,2]
[398869951,1765942234091,-206.37343248,0.00014973,2]
[398869952,1765942234100,-1002.1315586,0.00014999,2]
[398869953,1765942234109,-500.0,0.00014999,2]
[398869954,1765942234118,-452.00995556,0.00014999,2]
[398869955,1765942234127,-500.0,0.00014999,2]
[398869956,1765942234137,-500.0,0.00014999,2]
[398869957,1765942234147,-500.0,0.00014999,2]
[398869958,1765942234161,-500.0,0.00014999,2]
[398869959,1765942234170,-500.0,0.00014999,2]
[398869960,1765942234182,-208.48179988,0.00014999,2]
[398869961,1765942234192,-324.81324181,0.00014999,2]
[398869962,1765942234203,-500.0,0.00014999,2]
[398869963,1765942234212,-500.0,0.00014999,2]
[398869964,1765942234221,-342.23186363,0.00014999,2]
[398869965,1765942234231,-500.0,0.00014999,2]
[398869966,1765942234241,-259.53291082,0.00014999,2]
[398869967,1765942234250,-14097.83137308,0.00015,3]
[398869968,1765942234262,-4220.4275536,0.00015,3]
[398869969,1765942234274,-6800.362438,0.00015,3]
[398869970,1765942234356,-651.02931078,0.00015,3]
[398869971,1765942234366,-302.28095713,0.00015021,2]
[398869972,1765942234378,-6.71904287,0.00015021,2]
[398869973,1765942234388,-250.0,0.00015068,2]
[398869974,1765942234398,-53.59095713,0.00015068,2]
[398869975,1765942234412,-141.40904287,0.00015068,2]
[398869976,1765942234422,-150.1,0.00015072,2]
[398869977,1765942234432,-283.20242154,0.00015073,2]
[398869978,1765942234444,-500.0,0.00015073,2]
[398869979,1765942234453,-500.0,0.00015073,2]
[398869980,1765942234463,-500.0,0.00015073,2]
[398869981,1765942234473,-500.0,0.00015073,2]
[398869982,1765942234482,-500.0,0.00015073,2]
[398869983,1765942234492,-500.0,0.00015073,2]
[398869984,1765942234502,-500.0,0.00015073,2]
[398869985,1765942234511,-500.0,0.00015073,2]
[398869986,1765942234520,-500.0,0.00015073,2]
[398869987,1765942234529,-500.0,0.00015073,2]
[398869988,1765942234539,-500.0,0.00015073,2]
[398869989,1765942234548,-500.0,0.00015073,2]
[398869990,1765942234557,-315.16977859,0.00015073,2]
[398869991,1765942234569,-184.83022141,0.00015073,2]
[398869992,1765942234578,-500.0,0.00015073,2]
[398869993,1765942234587,-500.0,0.00015073,2]
[398869994,1765942234596,-500.0,0.00015073,2]
[398869995,1765942234605,-500.0,0.00015073,2]
[398869996,1765942234614,-500.0,0.00015073,2]
[398869997,1765942234624,-500.0,0.00015073,2]
[398869998,1765942234633,-500.0,0.00015073,2]
[398869999,1765942234642,-500.0,0.00015073,2]
[398870000,1765942234652,-500.0,0.00015073,2]
[398870001,1765942234662,-501.68620993,0.00015073,2]
[398870002,1765942234671,-500.0,0.00015073,2]
[398870003,1765942234682,-500.0,0.00015073,2]
[398870004,1765942234692,-500.0,0.00015073,2]
[398870005,1765942234702,-500.0,0.00015073,2]
[398870006,1765942234711,-500.0,0.00015073,2]
[398870007,1765942234720,-167.74692906,0.00015073,2]
[398870008,1765942234729,-500.0,0.00015073,2]
[398870009,1765942234739,-500.0,0.00015073,2]
[398870010,1765942234748,-500.0,0.00015073,2]
[398870011,1765942234758,-413.57049272,0.00015073,2]
[398870012,1765942234770,-86.42950728,0.00015073,2]
[398870013,1765942234779,-500.0,0.00015073,2]
[398870014,1765942234789,-500.0,0.00015073,2]
[398870015,1765942234798,-369.85654424,0.00015073,2]
[398870016,1765942234807,-142.94145215,0.00015073,2]
[398870017,1765942234819,-357.05854785,0.00015073,2]
[398870018,1765942234828,-500.0,0.00015073,2]
[398870019,1765942234837,-500.0,0.00015073,2]
[398870020,1765942234847,-500.0,0.00015073,2]
[398870021,1765942234856,-500.0,0.00015073,2]
[398870022,1765942234866,-542.51661158,0.00015073,2]
[398870023,1765942234877,-500.0,0.00015073,2]
[398870024,1765942234893,-500.0,0.00015073,2]
[398870025,1765942234905,-500.0,0.00015073,2]
[398870026,1765942234920,-500.0,0.00015073,2]
[398870027,1765942234934,-500.0,0.00015073,2]
[398870028,1765942234945,-500.0,0.00015073,2]
[398870029,1765942234956,-478.79517539,0.00015073,2]
[398870030,1765942235034,-21.20482461,0.00015073,2]
[398870031,1765942235044,-551.29408462,0.00015073,2]
[398870032,1765942235053,-500.0,0.00015073,2]
[398870033,1765942235063,-294.46570353,0.00015073,2]
[398870034,1765942235094,-205.53429647,0.00015073,2]
[398870035,1765942235104,-500.0,0.00015073,2]
[398870036,1765942235114,-500.0,0.00015073,2]
[398870037,1765942235124,-500.47680465,0.00015073,2]
[398870038,1765942235134,-500.0,0.00015073,2]
[398870039,1765942235143,-500.0,0.00015073,2]
[398870040,1765942235153,-446.50448203,0.00015073,2]
[398870041,1765942235167,-552.61551797,0.00015073,2]
[398870042,1765942235177,-793.79027913,0.00015261,2]
[398870043,1765942235186,-57.44145895,0.00015261,2]
[398870044,1765942235197,-653.70972726,0.00015261,2]
[398870045,1765942235209,-297.05507805,0.00015261,2]
[398870046,1765942235220,-275.65737968,0.00015261,2]
[398870047,1765942235229,-151.0,0.00015288,2]
[398870048,1765942235242,-207.81391095,0.00015291,2]
[398870049,1765942235253,-1848.75756851,0.00015291,2]
[398870065,1765942241268,-10501.73318086,0.00015291,2]